[Event "Championnat d'Europe Rapide"]
[Date "2024.12.08"]
[White "Pacher, Milan"]
[Black "Ciolacu, Alessia-Mihaela"]
[WhiteElo "2310"]
[BlackElo "2124"]
[Round "8.46"]
[Result "0-1"]
[TimeControl "900+10"]

1. e4 {[%emt 00:39:12] [%clk 00:15:18]} c5 {[%emt 00:00:01] [%clk 00:15:18]} 2.
Nf3 {[%emt 00:00:02] [%clk 00:15:26]} d6 {[%emt 00:00:02] [%clk 00:15:27]} 3.
Bb5+ {[%emt 00:00:02] [%clk 00:15:34]} Bd7 {[%emt 00:00:03] [%clk 00:15:34]} 4.
Bxd7+ {[%emt 00:00:02] [%clk 00:15:41]} Qxd7 {[%emt 00:00:02] [%clk 00:15:42]}
5. c4 {[%emt 00:00:02] [%clk 00:15:49]} e5 {[%emt 00:00:04] [%clk 00:15:48]} 6.
Nc3 {[%emt 00:00:02] [%clk 00:15:57]} Be7 {[%emt 00:00:05] [%clk 00:15:52]} 7.
d3 {[%emt 00:00:02] [%clk 00:16:05]} Nc6 {[%emt 00:00:22] [%clk 00:15:41]} 8. a3
{[%emt 00:00:13] [%clk 00:16:02]} Bd8 {[%emt 00:00:16] [%clk 00:15:35]} 9. b4
{[%emt 00:00:10] [%clk 00:16:02]} Nge7 {[%emt 00:00:43] [%clk 00:15:02]} 10. O-O
{[%emt 00:00:22] [%clk 00:15:49]} O-O {[%emt 00:00:24] [%clk 00:14:49]} 11. b5
{[%emt 00:00:15] [%clk 00:15:44]} Nd4 {[%emt 00:00:28] [%clk 00:14:31]} 12. Nxd4
{[%emt 00:00:21] [%clk 00:15:33]} cxd4 {[%emt 00:00:02] [%clk 00:14:39]} 13. Nd5
{[%emt 00:00:23] [%clk 00:15:20]} Nxd5 {[%emt 00:01:26] [%clk 00:13:22]} 14.
exd5 {[%emt 00:00:02] [%clk 00:15:28]} f5 {[%emt 00:00:26] [%clk 00:13:07]} 15.
a4 {[%emt 00:01:11] [%clk 00:14:27]} Bf6 {[%emt 00:03:57] [%clk 00:09:19]} 16.
a5 {[%emt 00:00:21] [%clk 00:14:16]} g5 {[%emt 00:00:16] [%clk 00:09:14]} 17. a6
{[%emt 00:01:21] [%clk 00:13:05]} b6 {[%emt 00:00:03] [%clk 00:09:21]} 18. h3
{[%emt 00:00:07] [%clk 00:13:08]} g4 {[%emt 00:01:00] [%clk 00:08:31]} 19. hxg4
{[%emt 00:00:32] [%clk 00:12:46]} fxg4 {[%emt 00:00:02] [%clk 00:08:39]} 20. Qe2
{[%emt 00:00:11] [%clk 00:12:44]} Qf5 {[%emt 00:00:19] [%clk 00:08:30]} 21. Ba3
{[%emt 00:00:17] [%clk 00:12:38]} Be7 {[%emt 00:00:47] [%clk 00:07:53]} 22. Rae1
{[%emt 00:01:08] [%clk 00:11:40]} Qh5 {[%emt 00:00:35] [%clk 00:07:28]} 23. Qe4
{[%emt 00:01:38] [%clk 00:10:12]} Rf4 {[%emt 00:00:39] [%clk 00:06:58]} 24. Qe2
{[%emt 00:00:32] [%clk 00:09:50]} Raf8 {[%emt 00:00:24] [%clk 00:06:44]} 25. Bc1
{[%emt 00:00:03] [%clk 00:09:56]} R4f5 {[%emt 00:00:49] [%clk 00:06:06]} 26. Qe4
{[%emt 00:00:45] [%clk 00:09:21]} Bg5 {[%emt 00:00:32] [%clk 00:05:45]} 27. c5
{[%emt 00:03:30] [%clk 00:06:01]} Bxc1 {[%emt 00:01:35] [%clk 00:04:19]} 28.
Rxc1 {[%emt 00:00:05] [%clk 00:06:06]} Rf4 {[%emt 00:00:32] [%clk 00:03:58]} 29.
Qe2 {[%emt 00:01:59] [%clk 00:04:16]} R8f6 {[%emt 00:00:30] [%clk 00:03:38]} 30.
cxd6 {[%emt 00:01:08] [%clk 00:03:18]} Rh6 {[%emt 00:00:09] [%clk 00:03:39]} 31.
Rc8+ {[%emt 00:00:06] [%clk 00:03:22]} Kf7 {[%emt 00:00:04] [%clk 00:03:45]} 32.
Rc7+ {[%emt 00:00:21] [%clk 00:03:12]} Kf6 {[%emt 00:00:04] [%clk 00:03:51]} 33.
f3 {[%emt 00:00:17] [%clk 00:03:05]} g3 {[%emt 00:00:05] [%clk 00:03:55]} 0-1

[Site "Europe Echecs"]

[Event "Championnat d'Europe Rapide"]
[Date "2024.12.08"]
[White "Eftovski, Mateo"]
[Black "Aizenberg, Benny"]
[WhiteElo "2029"]
[BlackElo "2425"]
[Round "8.47"]
[Result "0-1"]
[TimeControl "900+10"]

1. d4 {[%emt 00:06:39] [%clk 00:15:18]} f5 {[%emt 00:00:01] [%clk 00:15:19]} 2.
Nf3 {[%emt 00:00:04] [%clk 00:15:23]} Nf6 {[%emt 00:00:02] [%clk 00:15:27]} 3.
g3 {[%emt 00:00:08] [%clk 00:15:25]} g6 {[%emt 00:00:02] [%clk 00:15:36]} 4. Bg2
{[%emt 00:00:02] [%clk 00:15:33]} Bg7 {[%emt 00:00:02] [%clk 00:15:44]} 5. O-O
{[%emt 00:00:03] [%clk 00:15:40]} O-O {[%emt 00:00:02] [%clk 00:15:52]} 6. c4
{[%emt 00:00:08] [%clk 00:15:42]} d6 {[%emt 00:00:02] [%clk 00:16:00]} 7. Qc2
{[%emt 00:00:18] [%clk 00:15:34]} Qe8 {[%emt 00:00:33] [%clk 00:15:37]} 8. d5
{[%emt 00:01:49] [%clk 00:13:54]} e5 {[%emt 00:00:48] [%clk 00:15:00]} 9. dxe6
{[%emt 00:00:36] [%clk 00:13:28]} Nc6 {[%emt 00:00:02] [%clk 00:15:08]} 10. Nbd2
{[%emt 00:02:43] [%clk 00:10:55]} Bxe6 {[%emt 00:00:33] [%clk 00:14:45]} 11. e3
{[%emt 00:01:12] [%clk 00:09:53]} h6 {[%emt 00:00:56] [%clk 00:13:59]} 12. Nd4
{[%emt 00:00:20] [%clk 00:09:43]} Nxd4 {[%emt 00:00:21] [%clk 00:13:48]} 13.
exd4 {[%clk 00:09:52]} c6 {[%emt 00:00:01] [%clk 00:13:57]} 14. b3 {[%emt
00:00:54] [%clk 00:09:08]} g5 {[%emt 00:00:57] [%clk 00:13:09]} 15. Bb2 {[%emt
00:01:14] [%clk 00:08:05]} Qh5 {[%emt 00:00:19] [%clk 00:13:00]} 16. Rae1 {[%emt
00:00:36] [%clk 00:07:39]} Rfe8 {[%emt 00:01:20] [%clk 00:11:50]} 17. Qd1 {[%emt
00:02:46] [%clk 00:05:03]} Qxd1 {[%emt 00:01:10] [%clk 00:10:49]} 18. Rxd1
{[%emt 00:00:02] [%clk 00:05:12]} d5 {[%emt 00:00:03] [%clk 00:10:56]} 19. cxd5
{[%emt 00:01:39] [%clk 00:03:44]} Bxd5 {[%emt 00:00:08] [%clk 00:10:58]} 20. Nc4
{[%emt 00:00:02] [%clk 00:03:52]} Re2 {[%emt 00:00:12] [%clk 00:10:55]} 21.
Bxd5+ {[%emt 00:00:43] [%clk 00:03:18]} cxd5 {[%emt 00:00:38] [%clk 00:10:27]}
22. Rd2 {[%emt 00:00:23] [%clk 00:03:06]} Rae8 {[%emt 00:00:10] [%clk 00:10:26]}
23. Rxe2 {[%emt 00:02:09] [%clk 00:01:08]} Rxe2 {[%emt 00:00:02] [%clk
00:10:34]} 24. Ne3 {[%emt 00:00:08] [%clk 00:01:10]} Rxb2 {[%emt 00:00:02] [%clk
00:10:42]} 25. Nxf5 {[%emt 00:00:01] [%clk 00:01:18]} Bf8 {[%emt 00:00:34] [%clk
00:10:19]} 26. Rc1 {[%emt 00:00:11] [%clk 00:01:18]} Ne4 {[%emt 00:00:08] [%clk
00:10:20]} 27. Rc8 {[%emt 00:00:05] [%clk 00:01:22]} Rxf2 {[%emt 00:00:49] [%clk
00:09:40]} 28. Nxh6+ {[%emt 00:00:42] [%clk 00:00:52]} Kg7 {[%emt 00:00:07]
[%clk 00:09:43]} 29. Ng4 {[%emt 00:00:04] [%clk 00:00:58]} Rf3 {[%emt 00:01:30]
[%clk 00:08:23]} 30. Rc7+ {[%emt 00:00:11] [%clk 00:00:57]} Rf7 {[%clk
00:08:32]} 31. Rc8 {[%emt 00:00:09] [%clk 00:00:58]} Nd2 {[%emt 00:00:34] [%clk
00:08:08]} 32. Rd8 {[%emt 00:00:13] [%clk 00:00:55]} Nf3+ {[%emt 00:00:42] [%clk
00:07:35]} 33. Kg2 {[%emt 00:00:02] [%clk 00:01:04]} Nxd4 {[%emt 00:00:01] [%clk
00:07:44]} 34. Rxd5 {[%emt 00:00:02] [%clk 00:01:13]} Nf5 {[%emt 00:00:05] [%clk
00:07:48]} 35. Rd8 {[%emt 00:00:36] [%clk 00:00:47]} Bd6 {[%emt 00:00:08] [%clk
00:07:49]} 36. Ra8 {[%emt 00:00:36] [%clk 00:00:21]} a6 {[%emt 00:00:05] [%clk
00:07:54]} 37. Rd8 {[%emt 00:00:02] [%clk 00:00:30]} Bc5 {[%emt 00:00:41] [%clk
00:07:23]} 38. Rd3 {[%emt 00:00:13] [%clk 00:00:27]} Re7 {[%emt 00:00:14] [%clk
00:07:19]} 39. Kf3 {[%emt 00:00:03] [%clk 00:00:34]} Nd4+ {[%emt 00:00:04] [%clk
00:07:25]} 40. Kg2 {[%emt 00:00:07] [%clk 00:00:37]} Re2+ {[%emt 00:00:15] [%clk
00:07:20]} 41. Kh3 {[%emt 00:00:02] [%clk 00:00:45]} Rxa2 {[%emt 00:00:06] [%clk
00:07:24]} 42. Ne5 {[%emt 00:00:32] [%clk 00:00:24]} Re2 {[%emt 00:00:16] [%clk
00:07:17]} 43. Nc4 {[%emt 00:00:18] [%clk 00:00:17]} b5 {[%emt 00:00:24] [%clk
00:07:03]} 44. Nd2 {[%emt 00:00:14] [%clk 00:00:12]} a5 {[%emt 00:00:03] [%clk
00:07:09]} 45. Kg4 {[%emt 00:00:02] [%clk 00:00:21]} a4 {[%emt 00:00:41] [%clk
00:06:38]} 46. bxa4 {[%emt 00:00:02] [%clk 00:00:29]} bxa4 {[%emt 00:00:01]
[%clk 00:06:47]} 47. Kxg5 {[%emt 00:00:19] [%clk 00:00:20]} Rxd2 {[%emt
00:00:04] [%clk 00:06:53]} 0-1

[Site "Europe Echecs"]

[Event "Championnat d'Europe Rapide"]
[Date "2024.12.08"]
[White "Avramidou, Anastasia"]
[Black "Stefanova, Antoaneta"]
[WhiteElo "2298"]
[BlackElo "2418"]
[Round "8.48"]
[Result "1/2-1/2"]
[TimeControl "900+10"]

1. d4 {[%clk 00:15:17]} d5 {[%emt 00:00:03] [%clk 00:15:18]} 2. c4 {[%emt
00:00:01] [%clk 00:15:25]} c6 {[%emt 00:00:06] [%clk 00:15:23]} 3. Nf3 {[%emt
00:00:09] [%clk 00:15:26]} Nf6 {[%emt 00:00:21] [%clk 00:15:13]} 4. e3 {[%emt
00:00:58] [%clk 00:14:37]} g6 {[%emt 00:00:42] [%clk 00:14:41]} 5. Nc3 {[%emt
00:00:27] [%clk 00:14:20]} Bg7 {[%emt 00:00:17] [%clk 00:14:34]} 6. Be2 {[%emt
00:00:27] [%clk 00:14:02]} O-O {[%emt 00:00:12] [%clk 00:14:32]} 7. O-O {[%emt
00:00:03] [%clk 00:14:09]} a6 {[%emt 00:00:21] [%clk 00:14:23]} 8. b3 {[%emt
00:00:32] [%clk 00:13:46]} b5 {[%emt 00:01:03] [%clk 00:13:31]} 9. Bb2 {[%emt
00:00:35] [%clk 00:13:20]} Nbd7 {[%emt 00:00:03] [%clk 00:13:38]} 10. Qc2 {[%emt
00:01:10] [%clk 00:12:20]} Nb6 {[%emt 00:00:59] [%clk 00:12:49]} 11. Ne5 {[%emt
00:02:06] [%clk 00:10:24]} Bf5 {[%emt 00:00:22] [%clk 00:12:38]} 12. Bd3 {[%emt
00:01:02] [%clk 00:09:31]} Bxd3 {[%emt 00:00:25] [%clk 00:12:23]} 13. Qxd3
{[%emt 00:00:02] [%clk 00:09:38]} dxc4 {[%emt 00:05:48] [%clk 00:06:46]} 14.
bxc4 {[%emt 00:00:07] [%clk 00:09:41]} b4 {[%emt 00:00:10] [%clk 00:06:46]} 15.
Ne2 {[%emt 00:02:13] [%clk 00:07:38]} Na4 {[%emt 00:02:28] [%clk 00:04:29]} 16.
Rab1 {[%emt 00:02:08] [%clk 00:05:40]} Nxb2 {[%emt 00:01:23] [%clk 00:03:15]}
17. Rxb2 {[%emt 00:00:02] [%clk 00:05:48]} c5 {[%emt 00:00:01] [%clk 00:03:24]}
18. Rc2 {[%emt 00:00:29] [%clk 00:05:29]} Qc7 {[%emt 00:00:24] [%clk 00:03:10]}
19. Qb3 {[%emt 00:01:41] [%clk 00:03:57]} a5 {[%emt 00:00:20] [%clk 00:03:02]}
20. Qa4 {[%emt 00:00:01] [%clk 00:04:05]} Ne4 {[%emt 00:00:40] [%clk 00:02:32]}
21. Nd3 {[%emt 00:01:55] [%clk 00:02:20]} cxd4 {[%emt 00:00:32] [%clk 00:02:10]}
22. exd4 {[%emt 00:00:13] [%clk 00:02:17]} Rfd8 {[%emt 00:00:09] [%clk
00:02:11]} 23. d5 {[%emt 00:01:45] [%clk 00:00:42]} Nc3 {[%emt 00:00:02] [%clk
00:02:19]} 24. Nxc3 {[%emt 00:00:17] [%clk 00:00:35]} Bxc3 {[%emt 00:00:03]
[%clk 00:02:26]} 25. Nb2 {[%emt 00:00:27] [%clk 00:00:17]} Bxb2 {[%emt 00:00:36]
[%clk 00:02:01]} 26. Rxb2 {[%emt 00:00:01] [%clk 00:00:26]} Qxc4 {[%emt
00:00:02] [%clk 00:02:09]} 27. a3 {[%clk 00:00:35]} Rxd5 {[%emt 00:01:02] [%clk
00:01:18]} 28. axb4 {[%emt 00:00:03] [%clk 00:00:40]} Rb8 {[%emt 00:01:05]} 29.
Rfb1 {[%clk 00:00:14]} Rdb5 {[%emt 00:00:03] [%clk 00:01:08]} 30. h3 {[%emt
00:00:09] [%clk 00:00:16]} axb4 {[%emt 00:00:26] [%clk 00:00:52]} 31. Rb3 {[%emt
00:00:04] [%clk 00:00:21]} h5 {[%emt 00:00:07] [%clk 00:00:55]} 32. Qa7 {[%emt
00:00:06] [%clk 00:00:25]} Qe4 {[%emt 00:00:20] [%clk 00:00:45]} 33. Rc1 {[%emt
00:00:21] [%clk 00:00:14]} R5b7 {[%emt 00:00:08] [%clk 00:00:47]} 34. Qa5 {[%emt
00:00:08] [%clk 00:00:16]} Qe6 {[%emt 00:00:16] [%clk 00:00:41]} 35. Rcb1 {[%emt
00:00:03] [%clk 00:00:23]} Qd6 {[%emt 00:00:03] [%clk 00:00:48]} 36. Qg5 {[%emt
00:00:16] [%clk 00:00:17]} Rb5 {[%emt 00:00:17] [%clk 00:00:41]} 37. Qh4 {[%emt
00:00:07] [%clk 00:00:19]} Kg7 {[%emt 00:00:14] [%clk 00:00:38]} 38. Qe4 {[%emt
00:00:08] [%clk 00:00:22]} e5 {[%emt 00:00:15] [%clk 00:00:33]} 39. Re1 {[%emt
00:00:12] [%clk 00:00:19]} Qe6 {[%emt 00:00:25] [%clk 00:00:19]} 40. Reb1 {[%emt
00:00:03] [%clk 00:00:26]} Qd6 {[%emt 00:00:01] [%clk 00:00:28]} 41. Re1 {[%emt
00:00:01] [%clk 00:00:35]} f5 {[%emt 00:00:06] [%clk 00:00:31]} 42. Qe3 {[%emt
00:00:07] [%clk 00:00:38]} e4 {[%emt 00:00:04] [%clk 00:00:37]} 43. Ra1 {[%emt
00:00:08] [%clk 00:00:40]} R8b7 {[%emt 00:00:04] [%clk 00:00:43]} 44. g3 {[%emt
00:00:14] [%clk 00:00:36]} Rd5 {[%emt 00:00:06] [%clk 00:00:48]} 45. Ra7 {[%emt
00:00:13] [%clk 00:00:32]} Qd7 {[%emt 00:00:04] [%clk 00:00:53]} 46. Ra6 {[%emt
00:00:20] [%clk 00:00:23]} Rd6 {[%emt 00:00:10] [%clk 00:00:53]} 47. Ra8 {[%emt
00:00:03] [%clk 00:00:30]} Rc6 {[%emt 00:00:28] [%clk 00:00:36]} 48. Kg2 {[%emt
00:00:19] [%clk 00:00:21]} Qd5 {[%emt 00:00:20] [%clk 00:00:26]} 49. Ra4 {[%emt
00:00:13] [%clk 00:00:17]} Qc5 {[%emt 00:00:10] [%clk 00:00:26]} 50. Qxc5 {[%emt
00:00:13] [%clk 00:00:15]} Rxc5 {[%clk 00:00:35]} 51. Raxb4 {[%clk 00:00:24]}
Rxb4 {[%emt 00:00:03] [%clk 00:00:42]} 52. Rxb4 {[%clk 00:00:33]} Rc2 {[%emt
00:00:05] [%clk 00:00:48]} 53. Rb3 {[%emt 00:00:15] [%clk 00:00:26]} h4 {[%emt
00:00:11] [%clk 00:00:48]} 54. gxh4 {[%emt 00:00:17] [%clk 00:00:18]} f4 {[%emt
00:00:05] [%clk 00:00:54]} 55. Rb4 {[%emt 00:00:07] [%clk 00:00:21]} Re2 {[%emt
00:00:24] [%clk 00:00:39]} 56. Kf1 {[%clk 00:00:30]} f3 {[%emt 00:00:04] [%clk
00:00:46]} 57. Rb5 {[%emt 00:00:23] [%clk 00:00:17]} Ra2 {[%emt 00:00:24] [%clk
00:00:33]} 58. Ke1 {[%emt 00:00:12] [%clk 00:00:14]} Kf6 {[%emt 00:00:16] [%clk
00:00:27]} 59. h5 {[%emt 00:00:06] [%clk 00:00:18]} g5 {[%emt 00:00:17] [%clk
00:00:20]} 60. h6 {[%emt 00:00:10] [%clk 00:00:18]} Kg6 {[%emt 00:00:04] [%clk
00:00:27]} 61. Rb6+ {[%emt 00:00:01] [%clk 00:00:27]} Kh7 {[%emt 00:00:03] [%clk
00:00:34]} 62. Re6 {[%emt 00:00:02] [%clk 00:00:34]} Re2+ {[%emt 00:00:16] [%clk
00:00:29]} 63. Kf1 {[%clk 00:00:43]} Ra2 {[%emt 00:00:19] [%clk 00:00:20]} 64.
Ke1 {[%clk 00:00:52]} Ra1+ {[%emt 00:00:13] [%clk 00:00:17]} 65. Kd2 {[%emt
00:00:06] [%clk 00:00:56]} Rf1 {[%emt 00:00:08] [%clk 00:00:20]} 66. Rxe4 {[%emt
00:00:16] [%clk 00:00:49]} Rxf2+ {[%emt 00:00:03] [%clk 00:00:27]} 67. Ke3
{[%emt 00:00:45] [%clk 00:00:14]} Rf1 {[%emt 00:00:04] [%clk 00:00:33]} 68. Rg4
{[%emt 00:00:06] [%clk 00:00:16]} Kxh6 {[%emt 00:00:09] [%clk 00:00:37]} 69. Rg3
{[%emt 00:00:07] [%clk 00:00:17]} Kh5 {[%emt 00:00:18] [%clk 00:00:30]} 70. Rxf3
{[%emt 00:00:02] [%clk 00:00:26]} Ra1 {[%emt 00:00:11] [%clk 00:00:27]} 71. Kf2
{[%emt 00:00:13] [%clk 00:00:24]} Kh4 {[%emt 00:00:06] [%clk 00:00:32]} 72. Rd3
{[%emt 00:00:05] [%clk 00:00:27]} Ra2+ {[%emt 00:00:18] [%clk 00:00:25]} 73. Kg1
{[%emt 00:00:01] [%clk 00:00:36]} 1/2-1/2

[Site "Europe Echecs"]

[Event "Championnat d'Europe Rapide"]
[Date "2024.12.08"]
[White "Pipiras, Filipa Fortuna"]
[Black "Vuckovic, Zarko"]
[WhiteElo "2178"]
[BlackElo "2334"]
[Round "8.49"]
[Result "1-0"]
[TimeControl "900+10"]

1. d4 {[%emt 00:37:37] [%clk 00:15:17]} Nf6 {[%emt 00:00:01] [%clk 00:15:19]} 2.
c4 {[%emt 00:00:02] [%clk 00:15:26]} e6 {[%clk 00:15:28]} 3. Nc3 {[%emt
00:00:04] [%clk 00:15:31]} Bb4 {[%emt 00:00:02] [%clk 00:15:36]} 4. a3 {[%emt
00:00:05] [%clk 00:15:36]} Bxc3+ {[%emt 00:00:02] [%clk 00:15:45]} 5. bxc3
{[%emt 00:00:01] [%clk 00:15:45]} Nc6 {[%emt 00:00:01] [%clk 00:15:54]} 6. f3
{[%emt 00:00:03] [%clk 00:15:52]} d6 {[%emt 00:00:12] [%clk 00:15:52]} 7. e4
{[%emt 00:00:02] [%clk 00:15:59]} b6 {[%emt 00:00:58] [%clk 00:15:05]} 8. Bd3
{[%emt 00:00:20] [%clk 00:15:48]} O-O {[%emt 00:00:43] [%clk 00:14:33]} 9. Ne2
{[%emt 00:00:22] [%clk 00:15:35]} Ba6 {[%emt 00:01:59] [%clk 00:12:44]} 10. O-O
{[%emt 00:00:08] [%clk 00:15:37]} Na5 {[%emt 00:00:33] [%clk 00:12:21]} 11. Bg5
{[%emt 00:00:18] [%clk 00:15:28]} Bxc4 {[%emt 00:01:30] [%clk 00:11:02]} 12. f4
{[%emt 00:01:32] [%clk 00:14:06]} Qe8 {[%emt 00:00:23] [%clk 00:10:50]} 13. Bxf6
{[%emt 00:01:12] [%clk 00:13:04]} gxf6 {[%clk 00:10:59]} 14. Ng3 {[%clk
00:13:13]} Kh8 {[%emt 00:00:19] [%clk 00:10:49]} 15. Nh5 {[%emt 00:00:52] [%clk
00:12:31]} Qe7 {[%emt 00:00:13] [%clk 00:10:47]} 16. Bxc4 {[%emt 00:04:54] [%clk
00:07:47]} Nxc4 {[%emt 00:00:07] [%clk 00:10:50]} 17. Qg4 {[%emt 00:00:01] [%clk
00:07:55]} Rg8 {[%emt 00:00:49] [%clk 00:10:11]} 18. Qh4 {[%emt 00:00:04] [%clk
00:08:01]} Rg6 {[%emt 00:01:49] [%clk 00:08:32]} 19. Rf2 {[%emt 00:01:47] [%clk
00:06:25]} Rag8 {[%emt 00:02:32] [%clk 00:06:10]} 20. Re1 {[%emt 00:01:15] [%clk
00:05:20]} Qd8 {[%emt 00:00:42] [%clk 00:05:38]} 21. f5 {[%emt 00:02:54] [%clk
00:02:36]} Rh6 {[%emt 00:00:02] [%clk 00:05:46]} 22. Kh1 {[%emt 00:04:11]} Rg5
{[%clk 00:02:24]} 23. g4 {[%emt 00:00:03] [%clk 00:02:12]} Qg8 {[%emt 00:00:01]
[%clk 00:02:32]} 24. h3 {[%emt 00:00:18] [%clk 00:02:06]} e5 {[%emt 00:00:44]
[%clk 00:01:58]} 25. Rg2 {[%emt 00:01:02] [%clk 00:01:13]} a5 {[%emt 00:01:01]
[%clk 00:01:08]} 26. Qf2 {[%emt 00:00:02] [%clk 00:01:20]} Rhxh5 {[%emt
00:00:15] [%clk 00:01:04]} 27. gxh5 {[%emt 00:00:02] [%clk 00:01:28]} Rxg2
{[%emt 00:00:02] [%clk 00:01:12]} 28. Qxg2 {[%emt 00:00:02] [%clk 00:01:36]}
Qxg2+ {[%emt 00:00:01] [%clk 00:01:21]} 29. Kxg2 {[%emt 00:00:02] [%clk
00:01:43]} Nxa3 {[%emt 00:00:01] [%clk 00:01:30]} 30. Kf3 {[%emt 00:00:52] [%clk
00:01:02]} Nb5 {[%emt 00:01:07] [%clk 00:00:33]} 31. dxe5 {[%emt 00:00:31] [%clk
00:00:41]} fxe5 {[%emt 00:00:01] [%clk 00:00:42]} 32. Rc1 {[%emt 00:00:12] [%clk
00:00:39]} Kg7 {[%clk 00:00:51]} 33. Ke3 {[%emt 00:00:16] [%clk 00:00:33]} Kf6
{[%emt 00:00:27] [%clk 00:00:38]} 34. Kd3 {[%clk 00:00:41]} h6 {[%emt 00:00:18]
[%clk 00:00:32]} 35. Rg1 Na3 {[%emt 00:00:18]} 36. c4 {[%emt 00:00:10] [%clk
00:00:39]} b5 {[%emt 00:00:01] [%clk 00:00:41]} 37. cxb5 {[%emt 00:00:03] [%clk
00:00:46]} Nxb5 {[%clk 00:00:50]} 38. Ra1 {[%emt 00:00:11] [%clk 00:00:45]} Kg5
{[%emt 00:00:13] [%clk 00:00:46]} 39. Rxa5 {[%emt 00:00:03] [%clk 00:00:53]} c6
{[%emt 00:00:04] [%clk 00:00:52]} 40. Ra6 {[%emt 00:00:10] [%clk 00:00:53]} Nd4
{[%clk 00:01:01]} 41. Ra7 {[%emt 00:00:04] [%clk 00:00:59]} f6 {[%emt 00:00:01]
[%clk 00:01:10]} 42. Rg7+ {[%emt 00:00:34] [%clk 00:00:34]} Kf4 {[%emt 00:00:01]
[%clk 00:01:19]} 43. Rg4+ {[%emt 00:00:08] [%clk 00:00:36]} Kf3 {[%emt 00:00:02]
[%clk 00:01:27]} 44. Rg6 {[%emt 00:00:03] [%clk 00:00:44]} d5 {[%emt 00:00:33]
[%clk 00:01:04]} 45. exd5 {[%emt 00:00:03] [%clk 00:00:51]} cxd5 {[%emt
00:00:02] [%clk 00:01:12]} 46. Rxf6 {[%emt 00:00:13] [%clk 00:00:47]} Kf4 {[%emt
00:00:13] [%clk 00:01:09]} 47. Rxh6 {[%emt 00:00:15] [%clk 00:00:42]} Nxf5
{[%emt 00:00:03] [%clk 00:01:17]} 48. Rg6 {[%emt 00:00:15] [%clk 00:00:37]} e4+
{[%emt 00:00:33] [%clk 00:00:54]} 49. Kd2 {[%emt 00:00:24] [%clk 00:00:23]} e3+
{[%emt 00:00:10] [%clk 00:00:55]} 50. Ke2 {[%emt 00:00:20] [%clk 00:00:12]} Nd4+
{[%emt 00:00:02] [%clk 00:01:03]} 51. Kd3 {[%emt 00:00:04] [%clk 00:00:17]} e2
{[%emt 00:00:37] [%clk 00:00:37]} 52. Kd2 {[%emt 00:00:07] [%clk 00:00:19]} Kf5
{[%emt 00:00:08] [%clk 00:00:40]} 53. Rg4 {[%emt 00:00:07] [%clk 00:00:22]} Nf3+
{[%emt 00:00:14] [%clk 00:00:36]} 54. Kxe2 {[%emt 00:00:02] [%clk 00:00:31]} Ng5
{[%clk 00:00:45]} 55. h6 {[%emt 00:00:08] [%clk 00:00:33]} Nxh3 {[%emt 00:00:07]
[%clk 00:00:47]} 56. h7 {[%emt 00:00:08] [%clk 00:00:35]} Kxg4 {[%emt 00:00:02]
[%clk 00:00:56]} 57. h8=Q {[%emt 00:00:01] [%clk 00:00:43]} Ng5 {[%emt 00:00:04]
[%clk 00:01:00]} 58. Qd4+ {[%emt 00:00:04] [%clk 00:00:51]} Ne4 {[%emt 00:00:03]
[%clk 00:01:07]} 59. Ke3 {[%emt 00:00:09] [%clk 00:00:53]} 1-0

[Site "Europe Echecs"]